fUST/lending_fUST_20250526
["ID","MTS","AMOUNT","RATE_DAILY","PERIOD"]
[362407855,1748256633822,-500.0,0.00019517,2]
[362407856,1748256633832,-460.7295299,0.00019517,2]
[362407857,1748256633842,-500.0,0.00019517,2]
[362407858,1748256633852,-500.0,0.00019517,2]
[362407859,1748256633862,-500.0,0.00019517,2]
[362407860,1748256633871,-500.87155734,0.00019517,2]
[362407861,1748256633882,-504.13823928,0.00019517,2]
[362407862,1748256633893,-500.0,0.00019543,2]
[362407863,1748256633902,-344.20987803,0.00019543,2]
[362407864,1748256633912,-500.0,0.00019543,2]
[362407865,1748256633922,-500.0,0.00019543,2]
[362407866,1748256633932,-500.0,0.00019543,2]
[362407867,1748256633943,-501.99831661,0.00019543,2]
[362407868,1748256633952,-505.52509647,0.00019543,2]
[362407869,1748256633962,-500.0,0.00019543,2]
[362407870,1748256633972,-160.05109076,0.00019543,2]
[362407871,1748256633982,-194.72792766,0.00019563,2]
[362407872,1748256633992,-500.0,0.0001959,2]
[362407873,1748256634003,-500.0,0.0001959,2]
[362407874,1748256634014,-500.0,0.00019612,2]
[362407875,1748256634024,-519.7414045,0.00019612,2]
[362407876,1748256634034,-500.0,0.00019612,2]
[362407877,1748256634044,-500.0,0.00019612,2]
[362407878,1748256634054,-201.93286099,0.00019618,2]
[362407879,1748256634064,-500.0,0.00019633,2]
[362407880,1748256634074,-500.0,0.00019633,2]
[362407881,1748256634084,-500.0,0.00019633,2]
[362407882,1748256634094,-500.0,0.00019643,2]
[362407883,1748256634105,-500.0,0.00019643,2]
[362407884,1748256634114,-375.58514452,0.00019665,2]
[362407885,1748256634125,-209.40437684,0.00019673,2]
[362407886,1748256634135,-500.0,0.00019707,2]
[362407887,1748256634145,-217.15233878,0.00019728,2]
[362407888,1748256634155,-500.0,0.00019768,2]
[362407889,1748256634165,-225.18697532,0.00019783,2]
[362407890,1748256634175,-500.0,0.00019783,2]
[362407891,1748256634185,-420.0,0.0001979,2]
[362407892,1748256634196,-420.0,0.0001979,2]
[362407893,1748256634207,-233.51889341,0.00019838,2]
[362407894,1748256634217,-1007.93830376,0.00019885,2]
[362407895,1748256634227,-1000.0,0.00019885,2]
[362407896,1748256634238,-1003.28249496,0.00019885,2]
[362407897,1748256634247,-1000.0,0.00019885,2]
[362407898,1748256634257,-1018.48881703,0.00019885,2]
[362407899,1748256634268,-510.48768727,0.00019885,2]
[362407900,1748256634278,-1680.0,0.00019887,2]
[362407901,1748256634290,-242.15909246,0.00019893,2]
[362407902,1748256634302,-1113.23151751,0.000199,2]
[362407903,1748256634312,-251.11897888,0.00019948,2]
[362407904,1748256634324,-156.24514887,0.00019976,2]
[362407905,1748256634334,-1004.98429276,0.00019978,2]
[362407906,1748256634345,-724.41881301,0.00019978,2]
[362407907,1748256634355,-1000.0,0.00019978,2]
[362407908,1748256634365,-1000.0,0.00019978,2]
[362407909,1748256634375,-1026.70158447,0.00019978,2]
[362407910,1748256634386,-1003.98607318,0.00019988,2]
[362407911,1748256634396,-1000.0,0.00019988,2]
[362407912,1748256634405,-599.98096962,0.00019988,2]
[362407913,1748256634416,-155.01209388,0.0002,4]
[362407914,1748256634426,-156.41994003,0.0002,2]
[362407915,1748256634435,-151.78445359,0.0002,2]
[362407916,1748256634455,-158.0,0.0002,2]
[362407917,1748256634468,-260.4103811,0.00020003,2]
[362407918,1748256634479,-732.99212623,0.0002005,2]
[362407919,1748256634490,-270.0455652,0.00020058,2]
[362407920,1748256634500,-1000.0,0.00020065,2]
[362407921,1748256634511,-1002.14230139,0.00020065,2]
[362407922,1748256634521,-1000.0,0.00020065,2]
[362407923,1748256634532,-500.0,0.00020065,2]
[362407924,1748256634542,-1113.23151743,0.00020072,2]
[362407925,1748256634553,-1004.65730264,0.00020091,2]
[362407926,1748256634564,-1000.0,0.00020091,2]
[362407927,1748256634575,-1014.98563752,0.00020091,2]
[362407928,1748256634585,-500.0,0.00020091,2]
[362407929,1748256634595,-1000.0,0.00020091,2]
[362407930,1748256634606,-280.03725112,0.00020113,2]
[362407931,1748256634617,-184.29,0.00020118,3]
[362407932,1748256634628,-368.59,0.00020128,3]
[362407933,1748256634638,-1000.0,0.00020138,2]
[362407934,1748256634648,-1000.0,0.00020138,2]
[362407935,1748256634659,-552.9,0.0002015,3]
[362407936,1748256634669,-1000.0,0.0002016,2]
[362407937,1748256634680,-573.09247553,0.0002016,2]
[362407938,1748256634690,-507.26848738,0.0002016,2]
[362407939,1748256634701,-401.42714126,0.00020168,2]
[362407940,1748256634711,-1000.0,0.00020181,2]
[362407941,1748256634722,-535.19813433,0.00020181,2]
[362407942,1748256634732,-502.79920855,0.00020181,2]
[362407943,1748256634743,-550.56531828,0.00020191,2]
[362407944,1748256634755,-1000.0,0.00020191,2]
[362407945,1748256634765,-1113.23151743,0.00020245,2]
[362407946,1748256634776,-614.85627674,0.00020316,2]
[362407947,1748256634787,-397.99,0.00020321,3]
[362407948,1748256634799,-1001.51415023,0.00020331,2]
[362407949,1748256634810,-1113.23151743,0.00020417,3]
[362407950,1748256634821,-198.99,0.0002043,3]
[362407951,1748256634831,-507.57693645,0.00020433,2]
[362407952,1748256634842,-852.87,0.00020516,3]
[362407953,1748256634853,-597.02,0.00020516,3]
[362407954,1748256634863,-671.21612626,0.00020526,2]
[362407955,1748256634873,-500.0,0.00020536,2]
[362407956,1748256634883,-5000.0,0.00020552,2]
[362407957,1748256634893,-1113.23151743,0.0002059,3]
[362407958,1748256634903,-1500.0,0.00020613,2]
[362407959,1748256634913,-1500.0,0.00020613,2]
[362407960,1748256634923,-271.54581818,0.00020639,2]
[362407961,1748256634933,-1505.16616232,0.00020639,2]
[362407962,1748256634942,-1507.52283218,0.00020686,2]
[362407963,1748256634952,-500.0,0.00020708,2]
[362407964,1748256634963,-531.61500946,0.00020729,2]
[362407965,1748256634973,-1000.0,0.00020739,2]
[362407966,1748256634983,-1113.23151743,0.00020762,3]
[362407967,1748256634993,-1113.23151743,0.00020934,4]
[362407968,1748256635002,-157.90787,0.00020951,2]
[362407969,1748256635012,-153.468,0.00020995,2]
[362407970,1748256635022,-284.28,0.00021064,3]
[362407971,1748256635032,-1113.23151743,0.00021107,4]
[362407972,1748256635044,-2000.0,0.00021161,2]
[362407973,1748256635053,-1000.0,0.00021161,2]
[362407974,1748256635068,-500.0,0.00021164,2]
[362407975,1748256635078,-732.99212623,0.00021177,2]
[362407976,1748256635089,-1113.23151743,0.00021279,5]
[362407977,1748256635101,-1113.23151743,0.00021452,5]
[362407978,1748256635111,-368.58,0.00021488,3]
[362407979,1748256635122,-737.18,0.00021498,3]
[362407980,1748256635133,-587.0,0.0002159,2]
[362407981,1748256635143,-420.0,0.0002159,2]
[362407982,1748256635153,-1113.23151743,0.00021624,5]
[362407983,1748256635164,-795.98,0.00021691,3]
[362407984,1748256635174,-2500.0,0.00021708,2]
[362407985,1748256635184,-1113.23151743,0.00021797,6]
[362407986,1748256635194,-397.98,0.000218,3]
[362407987,1748256635204,-156.24514887,0.00021869,2]
[362407988,1748256635214,-2818.1,0.00021899,2]
[362407989,1748256635224,-2818.1,0.00021899,2]
[362407990,1748256635234,-2818.1,0.00021899,2]
[362407991,1748256635244,-2818.1,0.00021899,2]
[362407992,1748256635255,-957.09,0.000219,2]
[362407993,1748256635265,-200.0,0.00021917,2]
[362407994,1748256635275,-6509.02,0.00021917,2]
[362407995,1748256635285,-1113.23151743,0.00021969,6]
[362407996,1748256635295,-164.0,0.00022,2]
[362407997,1748256635308,-187.0,0.00022,2]
[362407998,1748256635319,-1113.23151743,0.00022141,6]
[362407999,1748256635329,-961.0,0.00022151,2]
[362408000,1748256635338,-404.0,0.00022151,2]
[362408001,1748256635349,-201.73770344,0.00022191,30]
[362408002,1748256635359,-3000.0,0.00022256,2]
[362408003,1748256635369,-732.99212623,0.00022304,2]
[362408004,1748256635379,-1113.23151743,0.00022314,7]
[362408005,1748256635389,-568.56,0.00022434,3]
[362408006,1748256635401,-1113.23151743,0.00022486,7]
[362408007,1748256635411,-1113.23151743,0.00022659,7]
[362408008,1748256635421,-3500.0,0.00022804,2]
[362408009,1748256635431,-1113.23151743,0.00022831,8]
[362408010,1748256635440,-829.53,0.00023,2]
[362408011,1748256635450,-500.0,0.00023,2]
[362408012,1748256635459,-1113.23151743,0.00023003,8]
[362408013,1748256635468,-1113.23151743,0.00023176,8]
[362408014,1748256635478,-1113.23151743,0.00023348,9]
[362408015,1748256635488,-4000.0,0.00023352,2]
[362408016,1748256635497,-500.0,0.00023356,2]
[362408017,1748256635507,-732.99212623,0.0002343,2]
[362408018,1748256635517,-1113.23151743,0.00023521,9]
[362408019,1748256635526,-5000.0,0.00023582,2]
[362408020,1748256635536,-5000.0,0.00023582,2]
[362408021,1748256635546,-207.4,0.00023582,2]
[362408022,1748256635555,-153.47078749,0.00023582,2]
[362408023,1748256635565,-5000.0,0.00023582,2]
[362408024,1748256635575,-5000.0,0.00023582,2]
[362408025,1748256635584,-3697.11560036,0.00023582,2]
[362408026,1748256635601,-1302.88439964,0.00023582,2]
[362408027,1748256635612,-5000.0,0.00023582,2]
[362408028,1748256635621,-157.44610476,0.00023616,2]
[362408029,1748256635631,-500.0,0.00023659,2]
[362408030,1748256635641,-1113.23151743,0.00023693,9]
[362408031,1748256635651,-1113.23151743,0.00023866,10]
[362408032,1748256635660,-4026.68370845,0.000239,2]
[362408033,1748256635670,-157.44610476,0.00023918,2]
[362408034,1748256635680,-205.0,0.0002396,2]
[362408035,1748256635692,-2202.971,0.0002397,2]
[362408036,1748256635702,-2803.0,0.00024,2]
[362408037,1748256635712,-151.0,0.00024,6]
[362408038,1748256635722,-183.0,0.00024,7]
[362408039,1748256635732,-1113.23151743,0.00024038,10]
[362408040,1748256635743,-2042.0,0.00024053,2]
[362408041,1748256635753,-5000.0,0.0002413,2]
[362408042,1748256635763,-563.921,0.00024149,15]
[362408043,1748256635772,-500.0,0.00024207,2]
[362408044,1748256635782,-1113.23151743,0.0002421,10]
[362408045,1748256635794,-157.44610476,0.00024219,2]
[362408046,1748256635804,-4134.52,0.00024255,9]
[362408047,1748256635814,-205.0,0.0002431,2]
[362408048,1748256635824,-174.85,0.00024345,2]
[362408049,1748256635834,-19071.12,0.00024351,9]
[362408050,1748256635843,-1113.23151743,0.00024383,11]
[362408051,1748256635854,-4202.88906765,0.000245,5]
[362408052,1748256635864,-151.0,0.000245,6]
[362408053,1748256635873,-655.702084,0.000245,3]
[362408054,1748256635883,-500.0,0.000245,2]
[362408055,1748256635892,-500.0,0.000245,2]
[362408056,1748256635902,-1113.23151743,0.00024555,11]
[362408057,1748256635912,-7860.59436799,0.00024556,2]
[362408058,1748256635922,-167.65925321,0.00024557,2]
[362408059,1748256635932,-732.99212623,0.00024557,2]
[362408060,1748256635941,-69925.01852611,0.00024651,2]
[362408061,1748256635951,-155.702,0.00024656,2]
[362408062,1748256635961,-452.83109271,0.00024657,3]
[362408063,1748256635971,-430.0,0.00024657,3]
[362408064,1748256635981,-430.0,0.00024657,3]
[362408065,1748256635991,-430.0,0.00024657,3]
[362408066,1748256636002,-430.0,0.00024657,3]
[362408067,1748256636012,-482.43958677,0.00024657,3]
[362408068,1748256636021,-408.288862,0.00024657,3]
[362408069,1748256636031,-430.9953378,0.00024657,3]
[362408070,1748256636042,-403.16433165,0.00024657,3]
[362408071,1748256636051,-430.0,0.00024657,3]
[362408072,1748256636061,-430.0,0.00024657,3]
[362408073,1748256636071,-435.21443288,0.00024657,3]
[362408074,1748256636082,-401.71795561,0.00024657,3]
[362408075,1748256636092,-430.0,0.00024657,3]
[362408076,1748256636103,-430.0,0.00024657,3]
[362408077,1748256636116,-430.0,0.00024657,3]
[362408078,1748256636127,-216.62490684,0.00024657,3]
[362408079,1748256636137,-430.0,0.00024657,3]
[362408080,1748256636147,-430.0,0.00024657,3]
[362408081,1748256636157,-430.0,0.00024657,3]
[362408082,1748256636167,-430.0,0.00024657,3]
[362408083,1748256636177,-430.0,0.00024657,3]
[362408084,1748256636187,-430.0,0.00024657,3]
[362408085,1748256636197,-237.78000385,0.00024657,3]
[362408086,1748256636330,-430.0,0.00024657,3]
[362408087,1748256636343,-165.67268473,0.00024657,3]
[362408088,1748256636352,-400.0,0.00024657,3]
[362408089,1748256636362,-430.0,0.00024657,3]
[362408090,1748256636371,-430.0,0.00024657,3]
[362408091,1748256636382,-430.0,0.00024657,3]
[362408092,1748256636392,-430.0,0.00024657,3]
[362408093,1748256636402,-430.0,0.00024657,3]
[362408094,1748256636411,-430.0,0.00024657,3]
[362408095,1748256636420,-430.0,0.00024657,3]
[362408096,1748256636430,-430.0,0.00024657,3]
[362408097,1748256636439,-430.0,0.00024657,3]
[362408098,1748256636448,-430.0,0.00024657,3]
[362408099,1748256636458,-430.0,0.00024657,3]
[362408100,1748256636467,-430.0,0.00024657,3]
[362408101,1748256636476,-430.0,0.00024657,3]
[362408102,1748256636486,-430.0,0.00024657,3]
[362408103,1748256636496,-430.0,0.00024657,3]
[362408104,1748256636505,-430.0,0.00024657,3]
[362408105,1748256636515,-430.0,0.00024657,3]
[362408106,1748256636525,-430.0,0.00024657,3]
[362408107,1748256636535,-430.0,0.00024657,3]
[362408108,1748256636558,-430.0,0.00024657,3]
[362408109,1748256636573,-430.0,0.00024657,3]
[362408110,1748256636584,-430.0,0.00024657,3]
[362408111,1748256636595,-430.0,0.00024657,3]
[362408112,1748256636605,-430.0,0.00024657,3]
[362408113,1748256636617,-430.0,0.00024657,3]
[362408114,1748256636627,-430.0,0.00024657,3]
[362408115,1748256636638,-430.0,0.00024657,3]
[362408116,1748256636648,-430.0,0.00024657,3]
[362408117,1748256636659,-259.92,0.00024657,3]
[362408118,1748256636670,-430.0,0.00024657,3]
[362408119,1748256636680,-430.0,0.00024657,3]
[362408120,1748256636690,-430.0,0.00024657,3]
[362408121,1748256636701,-430.0,0.00024657,3]
[362408122,1748256636712,-430.0,0.00024657,3]
[362408123,1748256636723,-430.0,0.00024657,3]
[362408124,1748256636735,-430.0,0.00024657,3]
[362408125,1748256636745,-430.0,0.00024657,3]
[362408126,1748256636756,-430.0,0.00024657,3]
[362408127,1748256636766,-430.0,0.00024657,3]
[362408128,1748256636777,-170.7,0.00024657,3]
[362408129,1748256636788,-430.0,0.00024657,3]
[362408130,1748256636802,-430.0,0.00024657,3]
[362408131,1748256636812,-430.0,0.00024657,3]
[362408132,1748256636823,-430.0,0.00024657,3]
[362408133,1748256636834,-430.0,0.00024657,3]
[362408134,1748256636845,-430.0,0.00024657,3]
[362408135,1748256636855,-430.0,0.00024657,3]
[362408136,1748256636866,-430.0,0.00024657,3]
[362408137,1748256636876,-430.0,0.00024657,3]
[362408138,1748256636887,-430.0,0.00024657,3]
[362408139,1748256636897,-430.0,0.00024657,3]
[362408140,1748256636907,-430.0,0.00024657,3]
[362408141,1748256636917,-430.0,0.00024657,3]
[362408142,1748256636928,-430.0,0.00024657,3]
[362408143,1748256636938,-430.0,0.00024657,3]
[362408144,1748256636948,-430.0,0.00024657,3]
[362408145,1748256636958,-352.8,0.00024657,3]
[362408146,1748256636968,-426.78653043,0.00024657,3]
[362408147,1748256636978,-430.0,0.00024657,3]
[362408148,1748256636988,-430.0,0.00024657,3]
[362408149,1748256636998,-430.0,0.00024657,3]
[362408150,1748256637008,-430.0,0.00024657,3]
[362408151,1748256637018,-430.0,0.00024657,3]
[362408152,1748256637028,-430.0,0.00024657,3]
[362408153,1748256637038,-430.0,0.00024657,3]
[362408154,1748256637049,-430.0,0.00024657,3]
[362408155,1748256637059,-430.0,0.00024657,3]
[362408156,1748256637069,-430.0,0.00024657,3]
[362408157,1748256637079,-430.0,0.00024657,3]
[362408158,1748256637089,-430.0,0.00024657,3]
[362408159,1748256637099,-430.0,0.00024657,3]
[362408160,1748256637109,-430.0,0.00024657,3]
[362408161,1748256637119,-357.73702143,0.00024657,3]
[362408162,1748256637129,-430.0,0.00024657,3]
[362408163,1748256637139,-430.0,0.00024657,3]
[362408164,1748256637149,-430.0,0.00024657,3]
[362408165,1748256637159,-430.0,0.00024657,3]
[362408166,1748256637169,-430.0,0.00024657,3]
[362408167,1748256637184,-430.0,0.00024657,3]
[362408168,1748256637194,-430.0,0.00024657,3]
[362408169,1748256637204,-430.0,0.00024657,3]
[362408170,1748256637215,-430.0,0.00024657,3]
[362408171,1748256637225,-430.0,0.00024657,3]
[362408172,1748256637235,-430.0,0.00024657,3]
[362408173,1748256637246,-430.0,0.00024657,3]
[362408174,1748256637256,-430.0,0.00024657,3]
[362408175,1748256637267,-430.0,0.00024657,3]
[362408176,1748256637277,-430.0,0.00024657,3]
[362408177,1748256637287,-430.0,0.00024657,3]
[362408178,1748256637299,-430.0,0.00024657,3]
[362408179,1748256637314,-430.0,0.00024657,3]
[362408180,1748256637324,-430.0,0.00024657,3]
[362408181,1748256637334,-203.26,0.00024657,3]
[362408182,1748256637344,-430.0,0.00024657,3]
[362408183,1748256637355,-430.0,0.00024657,3]
[362408184,1748256637365,-430.0,0.00024657,3]
[362408185,1748256637377,-444.53571869,0.00024657,3]
[362408186,1748256637390,-430.0,0.00024657,3]
[362408187,1748256637401,-343.37812412,0.00024657,3]
[362408188,1748256637413,-430.0,0.00024657,3]
[362408189,1748256637423,-430.0,0.00024657,3]
[362408190,1748256637433,-430.0,0.00024657,3]
[362408191,1748256637443,-430.0,0.00024657,3]
[362408192,1748256637454,-430.0,0.00024657,3]
[362408193,1748256637464,-446.26725662,0.00024657,3]
[362408194,1748256637475,-430.0,0.00024657,3]
[362408195,1748256637485,-518.65591912,0.00024657,3]
[362408196,1748256637495,-430.0,0.00024657,3]
[362408197,1748256637506,-430.0,0.00024657,3]
[362408198,1748256637516,-430.0,0.00024657,3]
[362408199,1748256637527,-430.0,0.00024657,3]
[362408200,1748256637536,-430.0,0.00024657,3]
[362408201,1748256637547,-430.0,0.00024657,3]
[362408202,1748256637557,-430.0,0.00024657,3]
[362408203,1748256637568,-430.0,0.00024657,3]
[362408204,1748256637578,-430.0,0.00024657,3]
[362408205,1748256637587,-430.0,0.00024657,3]
[362408206,1748256637597,-430.0,0.00024657,3]
[362408207,1748256637608,-430.0,0.00024657,3]
[362408208,1748256637618,-430.0,0.00024657,3]
[362408209,1748256637628,-430.0,0.00024657,3]
[362408210,1748256637639,-430.0,0.00024657,3]
[362408211,1748256637650,-430.0,0.00024657,3]
[362408212,1748256637661,-430.0,0.00024657,3]
[362408213,1748256637671,-430.0,0.00024657,3]
[362408214,1748256637680,-430.0,0.00024657,3]
[362408215,1748256637691,-430.0,0.00024657,3]
[362408216,1748256637701,-430.0,0.00024657,3]
[362408217,1748256637711,-267.5,0.00024657,3]
[362408218,1748256637721,-430.0,0.00024657,3]
[362408219,1748256637731,-430.0,0.00024657,3]
[362408220,1748256637741,-430.0,0.00024657,3]
[362408221,1748256637751,-430.0,0.00024657,3]
[362408223,1748256637760,-430.0,0.00024657,3]
[362408224,1748256637770,-430.0,0.00024657,3]
[362408225,1748256637780,-430.0,0.00024657,3]
[362408226,1748256637792,-196.95,0.00024657,3]
[362408227,1748256637803,-430.0,0.00024657,3]
[362408229,1748256637813,-430.0,0.00024657,3]
[362408230,1748256637823,-430.0,0.00024657,3]
[362408231,1748256637833,-510.0,0.00024657,3]
[362408232,1748256637842,-430.0,0.00024657,3]
[362408233,1748256637852,-430.0,0.00024657,3]
[362408234,1748256637862,-430.0,0.00024657,3]
[362408235,1748256637872,-430.0,0.00024657,3]
[362408236,1748256637882,-444.76786021,0.00024657,3]
[362408237,1748256637893,-430.0,0.00024657,3]
[362408238,1748256637903,-435.04594194,0.00024657,3]
[362408239,1748256637913,-430.0,0.00024657,3]
[362408241,1748256637923,-430.0,0.00024657,3]
[362408243,1748256637934,-430.0,0.00024657,3]
[362408244,1748256637944,-430.0,0.00024657,3]
[362408246,1748256637953,-430.0,0.00024657,3]
[362408247,1748256637963,-430.0,0.00024657,3]
[362408248,1748256637972,-430.0,0.00024657,3]
[362408250,1748256637983,-430.0,0.00024657,3]
[362408252,1748256637993,-430.0,0.00024657,3]
[362408254,1748256638003,-430.0,0.00024657,3]
[362408256,1748256638013,-430.0,0.00024657,3]
[362408258,1748256638023,-430.0,0.00024657,3]
[362408260,1748256638033,-430.0,0.00024657,3]
[362408262,1748256638045,-430.0,0.00024657,3]
[362408264,1748256638055,-430.0,0.00024657,3]
[362408266,1748256638064,-430.0,0.00024657,3]
[362408268,1748256638075,-430.0,0.00024657,3]
[362408270,1748256638085,-450.0,0.00024657,3]
[362408272,1748256638095,-450.0,0.00024657,3]
[362408274,1748256638106,-457.12849798,0.00024657,3]
[362408276,1748256638116,-437.419172,0.00024657,3]
[362408278,1748256638126,-430.0,0.00024657,3]
[362408280,1748256638136,-430.0,0.00024657,3]
[362408283,1748256638146,-430.0,0.00024657,3]
[362408284,1748256638156,-430.0,0.00024657,3]
[362408286,1748256638166,-443.96017812,0.00024657,3]
[362408288,1748256638176,-208.02983747,0.00024657,3]
[362408290,1748256638186,-430.0,0.00024657,3]
[362408292,1748256638196,-430.0,0.00024657,3]
[362408294,1748256638206,-430.0,0.00024657,3]
[362408296,1748256638216,-548.36,0.00024657,3]
[362408298,1748256638225,-430.0,0.00024657,3]
[362408300,1748256638236,-438.64818622,0.00024657,3]
[362408302,1748256638245,-430.0,0.00024657,3]
[362408304,1748256638255,-430.0,0.00024657,3]
[362408306,1748256638265,-430.0,0.00024657,3]
[362408308,1748256638276,-430.0,0.00024657,3]
[362408310,1748256638285,-430.0,0.00024657,3]
[362408312,1748256638297,-430.0,0.00024657,3]
[362408314,1748256638310,-430.0,0.00024657,3]
[362408316,1748256638320,-430.0,0.00024657,3]
[362408318,1748256638330,-430.0,0.00024657,3]
[362408320,1748256638339,-430.0,0.00024657,3]
[362408322,1748256638351,-430.0,0.00024657,3]
[362408324,1748256638361,-430.0,0.00024657,3]
[362408326,1748256638370,-402.66794232,0.00024657,3]
[362408328,1748256638381,-430.0,0.00024657,3]
[362408330,1748256638392,-430.0,0.00024657,3]
[362408332,1748256638402,-430.0,0.00024657,3]
[362408334,1748256638412,-430.0,0.00024657,3]
[362408336,1748256638422,-430.0,0.00024657,3]
[362408338,1748256638431,-430.0,0.00024657,3]
[362408340,1748256638441,-430.0,0.00024657,3]
[362408343,1748256638451,-251.486605,0.00024657,3]
[362408345,1748256638461,-430.0,0.00024657,3]
[362408347,1748256638471,-430.0,0.00024657,3]
[362408349,1748256638481,-430.0,0.00024657,3]
[362408351,1748256638491,-430.0,0.00024657,3]
[362408353,1748256638500,-430.0,0.00024657,3]
[362408355,1748256638510,-430.0,0.00024657,3]
[362408357,1748256638521,-422.42,0.00024657,3]
[362408359,1748256638531,-430.0,0.00024657,3]
[362408361,1748256638541,-520.48,0.00024657,3]
[362408363,1748256638550,-430.0,0.00024657,3]
[362408376,1748256638678,-430.0,0.00024657,3]
[362408378,1748256638688,-430.0,0.00024657,3]
[362408380,1748256638698,-430.0,0.00024657,3]
[362408382,1748256638708,-410.0,0.00024657,3]
[362408384,1748256638718,-342.11704127,0.00024657,3]
[362408386,1748256638727,-430.0,0.00024657,3]
[362408388,1748256638736,-430.0,0.00024657,3]
[362408390,1748256638746,-430.0,0.00024657,3]
[362408392,1748256638756,-430.0,0.00024657,3]
[362408394,1748256638765,-430.0,0.00024657,3]
[362408396,1748256638775,-430.0,0.00024657,3]
[362408398,1748256638784,-430.0,0.00024657,3]
[362408401,1748256638795,-430.0,0.00024657,3]
[362408403,1748256638805,-430.0,0.00024657,3]
[362408405,1748256638814,-430.0,0.00024657,3]
[362408407,1748256638824,-240.81,0.00024657,3]
[362408409,1748256638833,-430.0,0.00024657,3]
[362408411,1748256638842,-430.0,0.00024657,3]
[362408413,1748256638851,-430.0,0.00024657,3]
[362408415,1748256638861,-430.0,0.00024657,3]
[362408417,1748256638870,-430.0,0.00024657,3]
[362408419,1748256638879,-430.0,0.00024657,3]
[362408421,1748256638889,-430.0,0.00024657,3]
[362408423,1748256638898,-243.97937949,0.00024657,3]
[362408424,1748256638908,-430.0,0.00024657,3]
[362408427,1748256638918,-430.0,0.00024657,3]
[362408429,1748256638927,-430.0,0.00024657,3]
[362408431,1748256638936,-430.0,0.00024657,3]
[362408433,1748256638945,-430.0,0.00024657,3]
[362408435,1748256638957,-430.0,0.00024657,3]
[362408437,1748256638967,-430.0,0.00024657,3]
[362408439,1748256638977,-430.0,0.00024657,3]
[362408441,1748256638987,-430.0,0.00024657,3]
[362408443,1748256638996,-430.0,0.00024657,3]
[362408445,1748256639006,-430.0,0.00024657,3]
[362408447,1748256639015,-430.0,0.00024657,3]
[362408449,1748256639024,-430.0,0.00024657,3]
[362408451,1748256639034,-430.0,0.00024657,3]
[362408453,1748256639044,-430.0,0.00024657,3]
[362408455,1748256639054,-430.0,0.00024657,3]
[362408457,1748256639063,-430.0,0.00024657,3]
[362408459,1748256639073,-430.0,0.00024657,3]
[362408461,1748256639083,-430.0,0.00024657,3]
[362408463,1748256639092,-516.12927608,0.00024657,3]
[362408465,1748256639102,-430.0,0.00024657,3]
[362408467,1748256639111,-430.0,0.00024657,3]
[362408469,1748256639120,-430.0,0.00024657,3]
[362408471,1748256639130,-430.0,0.00024657,3]
[362408473,1748256639140,-430.0,0.00024657,3]
[362408475,1748256639149,-430.0,0.00024657,3]
[362408477,1748256639159,-430.0,0.00024657,3]
[362408479,1748256639169,-430.0,0.00024657,3]
[362408481,1748256639179,-430.0,0.00024657,3]
[362408483,1748256639188,-430.0,0.00024657,3]